[Event "EYCC Open U20 2021"]
[Site "Tornelo"]
[Date "2021.10.15"]
[Round "2.8"]
[White "Crevatin, Leo"]
[Black "Koelle, Tobias"]
[Result "0-1"]
[ECO "E24"]
[WhiteElo "2275"]
[BlackElo "2393"]
[Annotator "ChessBase"]
[PlyCount "122"]
[EventDate "2021.10.15"]
[EventType "swiss"]
[EventCountry "NET"]
[SourceTitle "playchess.com"]
[Source "ChessBase"]
[SourceQuality "1"]
[TimeControl "5400+30"]

1. d4 {[%emt 0:00:30]} d5 {[%emt 0:00:38]} 2. c4 {[%emt 0:00:52]} e6 {[%emt 0:00:09]} 3. Nc3 {[%emt 0:00:48]} Bb4 {[%emt 0:00:09]} 4. a3 {[%emt 0:02:02]} Bxc3+ {[%emt 0:00:07]} 5. bxc3 {[%emt 0:00:11]} Nf6 {[%emt 0:00:08]} 6. cxd5 {[%emt 0:02:58]} exd5 {[%emt 0:00:42]} 7. e3 {[%emt 0:00:33]} Bf5 {[%emt 0:00:52]} 8. Ne2 {[%emt 0:05:14]} O-O {[%emt 0:00:56]} 9. Ng3 {[%emt 0:00:19]} Bg6 {[%emt 0:00:44]} 10. Bd3 {[%emt 0:01:34]} Bxd3 {[%emt 0:04:37]} 11. Qxd3 {[%emt 0:00:07]} c5 {[%emt 0:09:16]} 12. O-O {[%emt 0:02:55]} cxd4 {[%emt 0:02:49]} 13. exd4 {[%emt 0:09:06]} Nbd7 {[%emt 0:32:27]} 14. Nf5 {[%emt 0:10:17]} g6 {[%emt 0:09:20]} 15. Bh6 {[%emt 0:16:14]} Re8 {[%emt 0:01:35]} 16. Nd6 {[%emt 0:13:11]} Re6 {[%emt 0:00:17]} 17. Nxb7 {[%emt 0:01:24]} Qc7 {[%emt 0:00:18]} 18. Nc5 {[%emt 0:01:15]} Nxc5 {[%emt 0:00:09]} 19. dxc5 {[%emt 0:00:12]} Ng4 {[%emt 0:00:12]} 20. Qh3 {[%emt 0:00:18]} Nxh6 {[%emt 0:00:07]} 21. Qxh6 {[%emt 0:00:15]} Qxc5 {[%emt 0:00:04]} 22. Qd2 {[%emt 0:05:21]} Rae8 {[%emt 0:01:14]} 23. g3 {[%emt 0:08:01]} Re2 {[%emt 0:00:44]} 24. Qd4 {[%emt 0:01:26]} Qxd4 {[%emt 0:00:12]} 25. cxd4 {[%emt 0:00:06]} Rd2 {[%emt 0:00:13]} 26. Rfd1 {[%emt 0:08:18]} Ree2 {[%emt 0:00:18]} 27. Rxd2 {[%emt 0:01:04]} Rxd2 {[%emt 0:00:04]} 28. Rb1 {[%emt 0:00:44]} Rxd4 {[%emt 0:00:15]} 29. Rb5 {[%emt 0:00:19]} Ra4 {[%emt 0:00:13]} 30. Rxd5 {[%emt 0:00:13]} Rxa3 {[%emt 0:00:06]} 31. Rd8+ {[%emt 0:00:19]} Kg7 {[%emt 0:00:11]} 32. Ra8 {[%emt 0:00:20]} g5 {[%emt 0:01:43]} 33. g4 {[%emt 0:01:33]} a5 {[%emt 0:01:31]} 34. Kg2 {[%emt 0:00:45]} a4 {[%emt 0:01:20]} 35. f3 {[%emt 0:01:29]} Ra1 {[%emt 0:00:33]} 36. h4 {[%emt 0:01:40]} gxh4 {[%emt 0:01:20]} 37. Kh3 {[%emt 0:00:49]} a3 {[%emt 0:02:46]} 38. Ra6 {[%emt 0:03:19]} a2 {[%emt 0:07:23]} 39. Kh2 {[%emt 0:00:38]} Kf8 {[%emt 0:00:50]} 40. Ra7 {[%emt 0:00:20]} h6 {[%emt 0:01:50]} 41. Kg2 {[%emt 0:00:27]} Ke8 {[%emt 0:00:41]} 42. Kh2 {[%emt 0:00:52]} Kd8 {[%emt 0:00:06]} 43. f4 {[%emt 0:01:11]} Kc8 {[%emt 0:00:38]} 44. f5 {[%emt 0:01:17]} Kb8 {[%emt 0:00:23]} 45. Ra3 {[%emt 0:00:40]} Kb7 {[%emt 0:00:09]} 46. Ra4 {[%emt 0:00:45]} Kb6 {[%emt 0:00:10]} 47. Ra8 {[%emt 0:00:21]} Kc5 {[%emt 0:01:28]} 48. Ra4 {[%emt 0:00:22]} Kd5 {[%emt 0:00:28]} 49. Kg2 {[%emt 0:00:54]} Ke5 {[%emt 0:00:57]} 50. Kh2 {[%emt 0:00:14]} Kf6 {[%emt 0:00:08]} 51. Kg2 {[%emt 0:00:46]} Kg5 {[%emt 0:00:08]} 52. Kh2 {[%emt 0:00:48]} h3 {[%emt 0:00:17]} 53. Ra5 {[%emt 0:00:34]} Kxg4 {[%emt 0:00:33]} 54. f6 {[%emt 0:00:36]} Kf4 {[%emt 0:01:29]} 55. Ra6 {[%emt 0:00:31]} Kf5 {[%emt 0:00:07]} 56. Ra5+ {[%emt 0:00:23]} Kxf6 {[%emt 0:00:06]} 57. Ra6+ {[%emt 0:00:10]} Ke5 {[%emt 0:00:19]} 58. Ra5+ {[%emt 0:00:12]} Kd4 {[%emt 0:00:09]} 59. Ra3 {[%emt 0:00:16]} f5 {[%emt 0:00:16]} 60. Ra4+ {[%emt 0:00:12]} Kc3 {[%emt 0:00:07]} 61. Ra8 {[%emt 0:00:14]} Rd1 {[%emt 0:00:28]} 0-1

[Event "EYCC Open U20 2021"]
[Site "Tornelo"]
[Date "2021.10.15"]
[Round "2.9"]
[White "Levin, Guy"]
[Black "Melaugh, Shane"]
[Result "0-1"]
[ECO "A96"]
[WhiteElo "2359"]
[BlackElo "2175"]
[Annotator "ChessBase"]
[PlyCount "114"]
[EventDate "2021.10.15"]
[EventType "swiss"]
[EventCountry "NET"]
[SourceTitle "playchess.com"]
[Source "ChessBase"]
[SourceQuality "1"]
[TimeControl "5400+30"]

1. Nf3 {[%emt 0:00:36]} f5 {[%emt 0:13:51]} 2. g3 {[%emt 0:00:51]} Nf6 {[%emt 0:00:12]} 3. Bg2 {[%emt 0:00:06]} d6 {[%emt 0:00:07]} 4. d4 {[%emt 0:00:15]} e6 {[%emt 0:00:05]} 5. c4 {[%emt 0:00:11]} Be7 {[%emt 0:00:04]} 6. Nc3 {[%emt 0:00:04]} O-O {[%emt 0:00:04]} 7. O-O {[%emt 0:00:03]} Ne4 {[%emt 0:00:08]} 8. Nxe4 {[%emt 0:00:16]} fxe4 {[%emt 0:00:06]} 9. Nd2 {[%emt 0:00:07]} d5 {[%emt 0:00:05]} 10. f3 {[%emt 0:00:04]} Nc6 {[%emt 0:00:07]} 11. fxe4 {[%emt 0:00:22]} Rxf1+ {[%emt 0:00:06]} 12. Kxf1 {[%emt 0:00:03]} dxc4 {[%emt 0:00:08]} 13. Nf3 {[%emt 0:00:05]} b5 {[%emt 0:03:16]} 14. Kg1 {[%emt 0:01:08]} e5 {[%emt 0:03:59]} 15. d5 {[%emt 0:02:46]} Bc5+ {[%emt 0:03:01]} 16. Kh1 {[%emt 0:00:58]} Qd6 {[%emt 0:00:26]} 17. Bd2 {[%emt 0:12:19]} Nd4 {[%emt 0:15:30]} 18. Ng1 {[%emt 0:12:17]} Bg4 {[%emt 0:11:08]} 19. h3 {[%emt 0:01:54]} Bh5 {[%emt 0:00:21]} 20. g4 {[%emt 0:02:49]} Bg6 {[%emt 0:00:06]} 21. e3 {[%emt 0:01:21]} Nc6 {[%emt 0:00:05]} 22. dxc6 {[%emt 0:02:18]} Rd8 {[%emt 0:00:11]} 23. Nf3 {[%emt 0:00:03]} Bxe4 {[%emt 0:00:30]} 24. Qf1 {[%emt 0:00:05]} Qxc6 {[%emt 0:01:42]} 25. Qe2 {[%emt 0:00:31]} Bd3 {[%emt 0:01:20]} 26. Qf2 {[%emt 0:03:46]} Be4 {[%emt 0:17:14]} 27. Nh4 {[%emt 0:01:41]} Rf8 {[%emt 0:01:38]} 28. Qg3 {[%emt 0:07:42]} Qd5 {[%emt 0:02:03]} 29. Bc3 {[%emt 0:02:12]} Bd6 {[%emt 0:01:57]} 30. Nf5 {[%emt 0:05:27]} b4 {[%emt 0:04:13]} 31. Be1 {[%emt 0:05:13]} Bc5 {[%emt 0:03:43]} 32. Bxe4 {[%emt 0:01:53]} Qxe4+ {[%emt 0:00:05]} 33. Qg2 {[%emt 0:00:03]} Qd3 {[%emt 0:00:15]} 34. Bg3 {[%emt 0:00:15]} c3 {[%emt 0:04:29]} 35. bxc3 {[%emt 0:06:01]} bxc3 {[%emt 0:00:17]} 36. Rc1 {[%emt 0:00:06]} Bxe3 {[%emt 0:00:57]} 37. Qf3 {[%emt 0:03:36]} Rxf5 {[%emt 0:00:22]} 38. gxf5 {[%emt 0:00:04]} e4 {[%emt 0:00:09]} 39. Qh5 {[%emt 0:00:05]} Kf8 {[%emt 0:01:18]} 40. Bf2 {[%emt 0:15:23]} Bxf2 {[%emt 0:01:46]} 41. Rd1 {[%emt 0:00:28]} Qf3+ {[%emt 0:01:22]} 42. Qxf3 {[%emt 0:00:17]} exf3 {[%emt 0:00:02]} 43. Rd8+ {[%emt 0:02:05]} Kf7 {[%emt 0:01:29]} 44. Rd3 {[%emt 0:04:18]} Be1 {[%emt 0:00:30]} 45. Rd7+ {[%emt 0:00:04]} Kf6 {[%emt 0:00:17]} 46. Rxc7 {[%emt 0:00:03]} Bd2 {[%emt 0:01:13]} 47. Kg1 {[%emt 0:01:14]} Be3+ {[%emt 0:00:37]} 48. Kf1 {[%emt 0:00:05]} Bd4 {[%emt 0:00:14]} 49. Rd7 {[%emt 0:03:33]} Ke5 {[%emt 0:00:05]} 50. Rxg7 {[%emt 0:00:27]} Kxf5 {[%emt 0:00:10]} 51. Rxh7 {[%emt 0:00:10]} Ke4 {[%emt 0:00:05]} 52. Rc7 {[%emt 0:02:41]} Kd3 {[%emt 0:00:10]} 53. h4 {[%emt 0:00:02]} c2 {[%emt 0:00:11]} 54. h5 {[%emt 0:00:01]} Bc3 {[%emt 0:00:27]} 55. Rd7+ {[%emt 0:00:04]} Ke4 {[%emt 0:00:36]} 56. Re7+ {[%emt 0:00:03]} Kf5 {[%emt 0:00:16]} 57. Rf7+ {[%emt 0:00:02]} Ke6 {[%emt 0:00:09]} 0-1

[Event "EYCC Open U20 2021"]
[Site "Tornelo"]
[Date "2021.10.15"]
[Round "2.10"]
[White "Tryggestad, Andreas Garberg"]
[Black "Nordquelle, Daniel"]
[Result "0-1"]
[ECO "D31"]
[WhiteElo "2268"]
[BlackElo "2143"]
[Annotator "ChessBase"]
[PlyCount "96"]
[EventDate "2021.10.15"]
[EventType "swiss"]
[EventCountry "NET"]
[SourceTitle "playchess.com"]
[Source "ChessBase"]
[SourceQuality "1"]
[TimeControl "5400+30"]

1. d4 {[%emt 0:00:30]} d5 {[%emt 0:00:54]} 2. c4 {[%emt 0:00:07]} e6 {[%emt 0:00:04]} 3. Nc3 {[%emt 0:00:05]} Bb4 {[%emt 0:03:08]} 4. Nf3 {[%emt 0:00:54]} dxc4 {[%emt 0:01:34]} 5. g3 {[%emt 0:05:15]} Ne7 {[%emt 0:06:52]} 6. Qa4+ {[%emt 0:01:40]} Nbc6 {[%emt 0:00:19]} 7. a3 {[%emt 0:00:29]} Bxc3+ {[%emt 0:01:15]} 8. bxc3 {[%emt 0:00:05]} Qd5 {[%emt 0:00:12]} 9. Bg2 {[%emt 0:00:22]} b5 {[%emt 0:00:44]} 10. Qc2 {[%emt 0:00:19]} Rb8 {[%emt 0:01:38]} 11. O-O {[%emt 0:01:56]} Qd7 {[%emt 0:02:55]} 12. Rb1 {[%emt 0:22:42]} a6 {[%emt 0:08:25]} 13. Ng5 {[%emt 0:21:24]} e5 {[%emt 0:11:56]} 14. d5 {[%emt 0:23:01]} Na5 {[%emt 0:02:21]} 15. f4 {[%emt 0:01:23]} e4 {[%emt 0:21:00]} 16. Bxe4 {[%emt 0:08:01]} h6 {[%emt 0:06:49]} 17. Nf3 {[%emt 0:00:10]} Nxd5 {[%emt 0:00:28]} 18. Nd4 {[%emt 0:07:38]} Bb7 {[%emt 0:08:08]} 19. Rd1 {[%emt 0:00:03]} Qe7 {[%emt 0:06:18]} 20. e3 {[%emt 0:03:04]} Nxe3 {[%emt 0:01:59]} 21. Bxe3 {[%emt 0:00:28]} Qxe4 {[%emt 0:00:11]} 22. Qxe4+ {[%emt 0:00:20]} Bxe4 {[%emt 0:00:04]} 23. Rb2 {[%emt 0:00:07]} O-O {[%emt 0:01:11]} 24. Kf2 {[%emt 0:01:32]} Rfd8 {[%emt 0:02:21]} 25. Rc1 {[%emt 0:00:10]} c5 {[%emt 0:03:29]} 26. Ne2 {[%emt 0:00:05]} Bd3 {[%emt 0:02:16]} 27. Ng1 {[%emt 0:00:07]} Nb3 {[%emt 0:00:23]} 28. Re1 {[%emt 0:00:03]} a5 {[%emt 0:02:07]} 29. Nf3 {[%emt 0:00:11]} b4 {[%emt 0:01:29]} 30. axb4 {[%emt 0:02:34]} axb4 {[%emt 0:00:56]} 31. cxb4 {[%emt 0:00:04]} cxb4 {[%emt 0:00:57]} 32. Ne5 {[%emt 0:00:03]} Rdc8 {[%emt 0:02:02]} 33. Nxd3 {[%emt 0:00:07]} Na5 {[%emt 0:01:32]} 34. Nxb4 {[%emt 0:00:59]} Nc6 {[%emt 0:00:56]} 35. Bd2 {[%emt 0:00:05]} Nd4 {[%emt 0:00:31]} 36. Bc3 {[%emt 0:00:10]} Ne6 {[%emt 0:00:30]} 37. Kf3 {[%emt 0:01:24]} Nc5 {[%emt 0:00:06]} 38. Ra1 {[%emt 0:01:07]} Rb7 {[%emt 0:00:53]} 39. Nd5 {[%emt 0:00:31]} Rd7 {[%emt 0:00:32]} 40. Nb6 {[%emt 0:00:38]} Rd3+ {[%emt 0:00:03]} 41. Kg4 {[%emt 0:00:06]} Rc6 {[%emt 0:00:39]} 42. Be1 {[%emt 0:00:56]} c3 {[%emt 0:00:45]} 43. Bxc3 {[%emt 0:00:13]} Rxc3 {[%emt 0:00:07]} 44. Nd5 {[%emt 0:00:04]} Nd3 {[%emt 0:00:47]} 45. Rd2 {[%emt 0:00:13]} f5+ {[%emt 0:00:34]} 46. Kh5 {[%emt 0:00:30]} Rb3 {[%emt 0:00:21]} 47. Ne7+ {[%emt 0:00:05]} Kh7 {[%emt 0:00:05]} 48. Nxc6 {[%emt 0:00:36]} Nxf4+ {[%emt 0:00:05]} 0-1

[Event "EYCC Open U20 2021"]
[Site "Tornelo"]
[Date "2021.10.15"]
[Round "2.11"]
[White "Bruaset, Eivind"]
[Black "Pliukha, Myhajlo"]
[Result "1/2-1/2"]
[ECO "C27"]
[WhiteElo "2200"]
[BlackElo "2217"]
[Annotator "ChessBase"]
[PlyCount "118"]
[EventDate "2021.10.15"]
[EventType "swiss"]
[EventCountry "NET"]
[SourceTitle "playchess.com"]
[Source "ChessBase"]
[SourceQuality "1"]
[TimeControl "5400+30"]

1. e4 {[%emt 0:00:30]} e5 {[%emt 0:00:56]} 2. Nc3 {[%emt 0:00:16]} Nf6 {[%emt 0:00:14]} 3. Bc4 {[%emt 0:02:03]} c6 {[%emt 0:00:55]} 4. d4 {[%emt 0:06:36]} Bb4 {[%emt 0:09:27]} 5. dxe5 {[%emt 0:12:33]} Nxe4 {[%emt 0:00:22]} 6. Qd4 {[%emt 0:04:33]} d5 {[%emt 0:04:55]} 7. exd6 {[%emt 0:01:53]} O-O {[%emt 0:00:28]} 8. Be3 {[%emt 0:16:02]} Nxc3 {[%emt 0:26:30]} 9. bxc3 {[%emt 0:00:17]} Bxd6 {[%emt 0:00:33]} 10. Nf3 {[%emt 0:02:38]} Bf5 {[%emt 0:02:08]} 11. Rd1 {[%emt 0:15:22]} Bc7 {[%emt 0:07:18]} 12. Bxf7+ {[%emt 0:01:08]} Rxf7 {[%emt 0:05:14]} 13. Qxd8+ {[%emt 0:00:58]} Bxd8 {[%emt 0:00:05]} 14. Rxd8+ {[%emt 0:00:05]} Rf8 {[%emt 0:00:01]} 15. Rxf8+ {[%emt 0:02:23]} Kxf8 {[%emt 0:00:04]} 16. Nd4 {[%emt 0:00:18]} Bd7 {[%emt 0:00:10]} 17. Bf4 {[%emt 0:08:20]} Na6 {[%emt 0:00:40]} 18. f3 {[%emt 0:02:11]} Kf7 {[%emt 0:01:11]} 19. Nb3 {[%emt 0:03:52]} Bf5 {[%emt 0:10:37]} 20. Kd2 {[%emt 0:00:25]} Re8 {[%emt 0:00:05]} 21. Re1 {[%emt 0:04:11]} Rxe1 {[%emt 0:05:01]} 22. Kxe1 {[%emt 0:00:05]} Bxc2 {[%emt 0:18:52]} 23. Na5 {[%emt 0:00:59]} Ke6 {[%emt 0:00:12]} 24. Be3 {[%emt 0:03:25]} Bb1 {[%emt 0:00:35]} 25. a3 {[%emt 0:03:14]} c5 {[%emt 0:01:43]} 26. Nxb7 {[%emt 0:01:26]} Kd5 {[%emt 0:00:07]} 27. Kd2 {[%emt 0:00:52]} Bg6 {[%emt 0:02:19]} 28. Na5 {[%emt 0:00:29]} c4 {[%emt 0:01:17]} 29. Bxa7 {[%emt 0:04:51]} Be8 {[%emt 0:01:04]} 30. Bd4 {[%emt 0:01:08]} g6 {[%emt 0:00:04]} 31. Ke3 {[%emt 0:00:16]} Nc7 {[%emt 0:00:08]} 32. Nb7 {[%emt 0:00:54]} Ne6 {[%emt 0:02:34]} 33. Bf6 {[%emt 0:00:44]} Nc7 {[%emt 0:00:33]} 34. Be7 {[%emt 0:01:32]} Kc6 {[%emt 0:00:13]} 35. Nd6 {[%emt 0:00:36]} Bd7 {[%emt 0:00:35]} 36. Nxc4 {[%emt 0:00:44]} Nd5+ {[%emt 0:00:03]} 37. Kd4 {[%emt 0:00:05]} Nxe7 {[%emt 0:00:02]} 38. Ne5+ {[%emt 0:00:05]} Kd6 {[%emt 0:00:05]} 39. Nxd7 {[%emt 0:00:05]} Nf5+ {[%emt 0:00:07]} 40. Ke4 {[%emt 0:00:16]} Kxd7 {[%emt 0:00:02]} 41. Ke5 {[%emt 0:00:50]} Nh4 {[%emt 0:00:15]} 42. Kf6 {[%emt 0:00:08]} Nxg2 {[%emt 0:00:21]} 43. Kg7 {[%emt 0:00:04]} Nh4 {[%emt 0:00:09]} 44. f4 {[%emt 0:01:17]} Ng2 {[%emt 0:01:50]} 45. Kxh7 {[%emt 0:00:09]} Nxf4 {[%emt 0:00:02]} 46. Kh6 {[%emt 0:00:21]} Nd5 {[%emt 0:02:15]} 47. Kxg6 {[%emt 0:01:43]} Nxc3 {[%emt 0:00:05]} 48. h4 {[%emt 0:00:42]} Ne2 {[%emt 0:00:30]} 49. Kg5 {[%emt 0:00:30]} Ng3 {[%emt 0:00:21]} 50. Kg4 {[%emt 0:00:06]} Ne4 {[%emt 0:00:04]} 51. Kf4 {[%emt 0:00:03]} Nf6 {[%emt 0:00:04]} 52. Kf5 {[%emt 0:00:08]} Nh5 {[%emt 0:00:06]} 53. Kg4 {[%emt 0:00:14]} Nf6+ {[%emt 0:00:05]} 54. Kg5 {[%emt 0:00:02]} Ne4+ {[%emt 0:00:04]} 55. Kg6 {[%emt 0:00:03]} Ng3 {[%emt 0:00:02]} 56. a4 {[%emt 0:00:02]} Kc6 {[%emt 0:00:09]} 57. a5 {[%emt 0:00:03]} Kb5 {[%emt 0:00:02]} 58. a6 {[%emt 0:00:07]} Kxa6 {[%emt 0:00:02]} 59. h5 {[%emt 0:00:02]} Nxh5 {[%emt 0:00:02]} 1/2-1/2

[Event "EYCC Open U20 2021"]
[Site "Tornelo"]
[Date "2021.10.15"]
[Round "3.1"]
[White "Salemgareev, Tagir"]
[Black "Pantzar, Milton"]
[Result "1/2-1/2"]
[ECO "A13"]
[WhiteElo "2489"]
[BlackElo "2413"]
[Annotator "ChessBase"]
[PlyCount "66"]
[EventDate "2021.10.15"]
[EventType "swiss"]
[EventCountry "NET"]
[SourceTitle "playchess.com"]
[Source "ChessBase"]
[SourceQuality "1"]
[TimeControl "5400+30"]

1. Nf3 {[%emt 0:00:30]} d5 {[%emt 0:00:54]} 2. e3 {[%emt 0:00:07]} Nf6 {[%emt 0:00:38]} 3. c4 {[%emt 0:00:07]} e6 {[%emt 0:00:30]} 4. b3 {[%emt 0:00:06]} b6 {[%emt 0:00:58]} 5. Bb2 {[%emt 0:00:07]} Bb7 {[%emt 0:00:39]} 6. Nc3 {[%emt 0:00:52]} Nbd7 {[%emt 0:01:21]} 7. Qc2 {[%emt 0:04:12]} a6 {[%emt 0:02:38]} 8. Be2 {[%emt 0:02:11]} Bd6 {[%emt 0:02:50]} 9. Rg1 {[%emt 0:07:58]} c5 {[%emt 0:10:41]} 10. O-O-O {[%emt 0:21:45]} b5 {[%emt 0:11:04]} 11. cxb5 {[%emt 0:07:38]} axb5 {[%emt 0:01:10]} 12. Nxb5 {[%emt 0:00:08]} Be7 {[%emt 0:01:35]} 13. Kb1 {[%emt 0:00:21]} O-O {[%emt 0:02:10]} 14. Nc3 {[%emt 0:07:27]} Qa5 {[%emt 0:08:02]} 15. g4 {[%emt 0:02:47]} c4 {[%emt 0:07:54]} 16. Nd4 {[%emt 0:03:23]} Rfc8 {[%emt 0:07:48]} 17. g5 {[%emt 0:10:38]} Ne4 {[%emt 0:00:48]} 18. bxc4 {[%emt 0:00:32]} Nb6 {[%emt 0:08:28]} 19. f3 {[%emt 0:12:47]} Nxc3+ {[%emt 0:03:45]} 20. Bxc3 {[%emt 0:00:08]} Qa7 {[%emt 0:02:51]} 21. Nb5 {[%emt 0:07:35]} Qa6 {[%emt 0:02:59]} 22. Ka1 {[%emt 0:01:52]} Nxc4 {[%emt 0:01:16]} 23. Rb1 {[%emt 0:00:10]} e5 {[%emt 0:07:39]} 24. Bxc4 {[%emt 0:03:15]} Rxc4 {[%emt 0:00:43]} 25. Rg4 {[%emt 0:00:10]} d4 {[%emt 0:01:33]} 26. exd4 {[%emt 0:00:32]} Ra4 {[%emt 0:04:28]} 27. Rb2 {[%emt 0:00:12]} Bd5 {[%emt 0:01:11]} 28. dxe5 {[%emt 0:01:43]} Rxa2+ {[%emt 0:00:56]} 29. Rxa2 {[%emt 0:00:06]} Bxa2 {[%emt 0:00:07]} 30. Nc7 {[%emt 0:00:26]} Qa3 {[%emt 0:03:50]} 31. Nb5 {[%emt 0:01:15]} Qa6 {[%emt 0:01:13]} 32. Nc7 {[%emt 0:00:07]} Qa3 {[%emt 0:01:57]} 33. Nb5 {[%emt 0:00:07]} Qa6 {[%emt 0:01:00]} 1/2-1/2

[Event "EYCC Open U20 2021"]
[Site "Tornelo"]
[Date "2021.10.15"]
[Round "3.2"]
[White "Garayev, Kanan"]
[Black "Murzin, Volodar"]
[Result "0-1"]
[ECO "B07"]
[WhiteElo "2339"]
[BlackElo "2513"]
[Annotator "ChessBase"]
[PlyCount "110"]
[EventDate "2021.10.15"]
[EventType "swiss"]
[EventCountry "NET"]
[SourceTitle "playchess.com"]
[Source "ChessBase"]
[SourceQuality "1"]
[TimeControl "5400+30"]

1. e4 {[%emt 0:00:30]} g6 {[%emt 0:03:32]} 2. d4 {[%emt 0:00:14]} Bg7 {[%emt 0:00:13]} 3. Nc3 {[%emt 0:00:54]} d6 {[%emt 0:00:28]} 4. g3 {[%emt 0:00:46]} Nf6 {[%emt 0:00:55]} 5. Bg2 {[%emt 0:00:03]} O-O {[%emt 0:00:15]} 6. Nge2 {[%emt 0:00:13]} Nbd7 {[%emt 0:01:11]} 7. O-O {[%emt 0:00:47]} e5 {[%emt 0:00:28]} 8. h3 {[%emt 0:01:16]} Re8 {[%emt 0:00:19]} 9. Re1 {[%emt 0:01:01]} c6 {[%emt 0:01:31]} 10. a4 {[%emt 0:00:22]} a5 {[%emt 0:00:42]} 11. Be3 {[%emt 0:02:32]} Qc7 {[%emt 0:03:11]} 12. Qd2 {[%emt 0:02:23]} exd4 {[%emt 0:03:00]} 13. Nxd4 {[%emt 0:01:42]} Nc5 {[%emt 0:01:10]} 14. Bf4 {[%emt 0:05:10]} Nfd7 {[%emt 0:00:42]} 15. Rad1 {[%emt 0:09:05]} Ne5 {[%emt 0:01:26]} 16. b3 {[%emt 0:04:52]} Qb6 {[%emt 0:06:29]} 17. Be3 {[%emt 0:02:49]} Qb4 {[%emt 0:08:58]} 18. Nb1 {[%emt 0:02:07]} Qb6 {[%emt 0:05:19]} 19. Na3 {[%emt 0:02:54]} Qc7 {[%emt 0:07:00]} 20. f4 {[%emt 0:07:33]} Ned7 {[%emt 0:00:34]} 21. Ndb5 {[%emt 0:02:38]} cxb5 {[%emt 0:01:28]} 22. Nxb5 {[%emt 0:00:03]} Qb8 {[%emt 0:04:53]} 23. Nxd6 {[%emt 0:00:56]} Re6 {[%emt 0:08:26]} 24. e5 {[%emt 0:01:31]} Ra6 {[%emt 0:02:44]} 25. Bd5 {[%emt 0:02:48]} Re7 {[%emt 0:02:15]} 26. f5 {[%emt 0:21:25]} Nxe5 {[%emt 0:12:46]} 27. Nxf7 {[%emt 0:06:53]} Rxf7 {[%emt 0:10:53]} 28. Bxf7+ {[%emt 0:04:33]} Nxf7 {[%emt 0:00:26]} 29. Bf4 {[%emt 0:07:31]} Qa7 {[%emt 0:02:28]} 30. Re8+ {[%emt 0:00:09]} Bf8 {[%emt 0:00:03]} 31. Bh6 {[%emt 0:04:51]} Nd7+ {[%emt 0:03:48]} 32. Be3 {[%emt 0:00:22]} Qb8 {[%emt 0:00:56]} 33. Bf4 {[%emt 0:00:34]} Qa7+ {[%emt 0:03:18]} 34. Be3 {[%emt 0:00:06]} Qa8 {[%emt 0:01:05]} 35. fxg6 {[%emt 0:02:52]} hxg6 {[%emt 0:01:50]} 36. Qxd7 {[%emt 0:01:49]} Bxd7 {[%emt 0:00:49]} 37. Rxa8 {[%emt 0:00:02]} Rxa8 {[%emt 0:00:03]} 38. Rxd7 {[%emt 0:00:01]} Rb8 {[%emt 0:02:34]} 39. Bf4 {[%emt 0:01:17]} Rc8 {[%emt 0:00:05]} 40. Rc7 {[%emt 0:02:04]} Rxc7 {[%emt 0:00:31]} 41. Bxc7 {[%emt 0:00:02]} Bb4 {[%emt 0:00:02]} 42. Kf1 {[%emt 0:00:18]} Kf8 {[%emt 0:01:02]} 43. Ke2 {[%emt 0:00:22]} Ke7 {[%emt 0:00:07]} 44. Kd3 {[%emt 0:00:21]} Kd7 {[%emt 0:00:59]} 45. c3 {[%emt 0:01:05]} Bxc3 {[%emt 0:01:23]} 46. Kxc3 {[%emt 0:00:28]} Kxc7 {[%emt 0:00:03]} 47. Kc4 {[%emt 0:00:27]} Kc6 {[%emt 0:00:31]} 48. b4 {[%emt 0:01:02]} Nd6+ {[%emt 0:00:08]} 49. Kc3 {[%emt 0:00:27]} axb4+ {[%emt 0:00:07]} 50. Kxb4 {[%emt 0:00:01]} Ne4 {[%emt 0:00:02]} 51. Kc4 {[%emt 0:00:42]} Nxg3 {[%emt 0:00:05]} 52. Kd4 {[%emt 0:00:08]} g5 {[%emt 0:00:48]} 53. Ke3 {[%emt 0:00:33]} Kb6 {[%emt 0:00:23]} 54. Kf3 {[%emt 0:00:02]} Nh5 {[%emt 0:00:04]} 55. Kg4 {[%emt 0:00:11]} Nf4 {[%emt 0:00:02]} 0-1

[Event "EYCC Open U20 2021"]
[Site "Tornelo"]
[Date "2021.10.15"]
[Round "3.3"]
[White "Dudin, Gleb"]
[Black "Rozen, Eytan"]
[Result "1-0"]
[ECO "D52"]
[WhiteElo "2438"]
[BlackElo "2386"]
[Annotator "NA"]
[PlyCount "103"]
[EventDate "2021.10.15"]
[EventType "swiss"]
[EventCountry "NET"]
[SourceTitle "playchess.com"]
[Source "ChessBase"]
[SourceQuality "1"]
[TimeControl "5400+30"]

1. d4 {[%emt 0:00:30]} d5 {[%emt 0:01:00]} 2. c4 {[%emt 0:00:06]} c6 {[%emt 0:00:01]} 3. Nf3 {[%emt 0:00:05]} Nf6 {[%emt 0:00:03]} 4. Nc3 {[%emt 0:00:04]} e6 {[%emt 0:00:05]} 5. Bg5 {[%emt 0:00:05]} Nbd7 {[%emt 0:00:12]} 6. e3 {[%emt 0:00:04]} Qa5 {[%emt 0:00:14]} 7. cxd5 {[%emt 0:00:19]} exd5 {[%emt 0:00:50]} 8. Nd2 {[%emt 0:00:38]} Ne4 {[%emt 0:02:37]} 9. Ncxe4 {[%emt 0:08:36]} dxe4 {[%emt 0:00:04]} 10. Bh4 {[%emt 0:00:26]} Nf6 {[%emt 0:11:02]} 11. Bc4 {[%emt 0:17:44]} Bg4 {[%emt 0:05:52]} 12. Qc2 {[%emt 0:02:13]} Bb4 {[%emt 0:02:56]} 13. Bxf6 {[%emt 0:18:04]} Bxd2+ {[%emt 0:00:12]} 14. Qxd2 {[%emt 0:00:06]} Qxd2+ {[%emt 0:00:04]} 15. Kxd2 {[%emt 0:00:05]} gxf6 {[%emt 0:00:02]} 16. Rhc1 {[%emt 0:01:07]} Ke7 {[%emt 0:03:17]} 17. Rc3 {[%emt 0:02:05]} Be6 {[%emt 0:03:32]} 18. Rac1 {[%emt 0:01:24]} Rhg8 {[%emt 0:01:21]} 19. g3 {[%emt 0:01:00]} Rg5 {[%emt 0:00:14]} 20. h4 {[%emt 0:00:51]} Rf5 {[%emt 0:01:15]} 21. Ke1 {[%emt 0:01:23]} Rd8 {[%emt 0:01:00]} 22. Bf1 {[%emt 0:02:14]} Ra5 {[%emt 0:05:40]} 23. a3 {[%emt 0:00:17]} Rad5 {[%emt 0:01:54]} 24. Bc4 {[%emt 0:04:57]} Ra5 {[%emt 0:02:02]} 25. Be2 {[%emt 0:00:13]} Rad5 {[%emt 0:00:49]} 26. Rb1 {[%emt 0:01:06]} h6 {[%emt 0:02:23]} 27. b4 {[%emt 0:01:04]} a6 {[%emt 0:00:21]} 28. a4 {[%emt 0:01:40]} Kd6 {[%emt 0:03:42]} 29. Bc4 {[%emt 0:05:03]} Rf5 {[%emt 0:01:16]} 30. Bf1 {[%emt 0:00:34]} Re8 {[%emt 0:04:14]} 31. Rbc1 {[%emt 0:05:02]} a5 {[%emt 0:03:22]} 32. b5 {[%emt 0:04:31]} cxb5 {[%emt 0:04:41]} 33. Bxb5 {[%emt 0:00:12]} Re7 {[%emt 0:00:06]} 34. Bf1 {[%emt 0:02:35]} Bd7 {[%emt 0:02:03]} 35. Bh3 {[%emt 0:01:26]} Rd5 {[%emt 0:00:07]} 36. Bxd7 {[%emt 0:00:11]} Rxd7 {[%emt 0:00:03]} 37. Rb1 {[%emt 0:00:54]} b5 {[%emt 0:02:51]} 38. Rxb5 {[%emt 0:06:34]} Rxb5 {[%emt 0:00:03]} 39. axb5 {[%emt 0:00:05]} a4 {[%emt 0:01:14]} 40. Rc6+ {[%emt 0:01:55]} Kd5 {[%emt 0:02:22]} 41. Ra6 {[%emt 0:01:45]} Kc4 {[%emt 0:00:36]} 42. Rxa4+ {[%emt 0:00:04]} Kxb5 {[%emt 0:00:05]} 43. Ra8 {[%emt 0:00:07]} f5 {[%emt 0:00:17]} 44. Rc8 {[%emt 0:00:44]} Rd5 {[%emt 0:00:17]} 45. Rc7 {[%emt 0:00:18]} f4 {[%emt 0:00:21]} 46. gxf4 {[%emt 0:00:34]} Rf5 {[%emt 0:00:46]} 47. Re7 {[%emt 0:00:08]} Kc4 {[%emt 0:00:07]} 48. Ke2 {[%emt 0:00:07]} f6 {[%emt 0:00:08]} 49. Rxe4 {[%emt 0:00:10]} Rh5 {[%emt 0:00:02]} 50. Re6 {[%emt 0:00:07]} f5 {[%emt 0:00:05]} 51. Rf6 {[%emt 0:00:13]} Rxh4 {[%emt 0:00:05]} 52. Rxf5 {[%emt 0:00:05]} 1-0